[Event "IX Iberoamericano Championship 2023"]
[Site "Panama City"]
[Date "2023.12.02"]
[Round "8.1"]
[White "Miranda Mesa, Elier"]
[Black "Henriquez Villagra, Cristobal"]
[Result "0-1"]
[ECO "B58"]
[WhiteElo "2490"]
[BlackElo "2630"]
[Annotator "TA"]
[PlyCount "96"]
[EventDate "2023.11.27"]
[EventType "swiss"]
[EventCountry "PAN"]
[SourceTitle "playchess.com"]
[Source "ChessBase"]
[SourceQuality "1"]
[TimeControl "5400+30"]

{[%evp 21,96,14,0,0,0,0,0,-17,-5,-18,-20,-11,-10,-35,0,0,22,-16,0,0,0,0,0,0,0,0,0,-13,0,0,0,0,27,0,0,0,0,0,0,0,0,0,0,0,0,0,0,0,0,0,0,-178,-158,-174,-180,-155,-140,-195,-163,-245,-103,-326,-318,-401,-378,-381,-314,-526,-520,-1231,-1244,-983,-983,-29982,-29983,-29989,-29982]} 1. e4 {[%emt 0:00:09]} c5 {[%emt 0:00:14]} 2. Nf3 {[%emt 0:00:08]} Nc6 {[%emt 0:00:06]} 3. d4 {[%emt 0:00:05]} cxd4 {[%emt 0:00:05]} 4. Nxd4 {[%emt 0:00:04]} Nf6 {[%emt 0:00:07]} 5. Nc3 {[%emt 0:00:04]} d6 {[%emt 0:00:04]} 6. Be2 {[%emt 0:00:05]} e5 {[%emt 0:00:05]} 7. Nf3 {[%emt 0:00:11]} h6 {[%emt 0:00:05]} 8. O-O {[%emt 0:00:07]} Be7 {[%emt 0:00:03][%cal Bf8e7,Be7d8,Bd8a5][%mdl 32]} 9. Re1 {[%emt 0:00:47]} O-O {[%emt 0:00:14]} 10. h3 {[%emt 0:00:42]} a6 {[%emt 0:00:08]} 11. Bf1 {[%emt 0:03:15]} Qc7 {[%emt 0:01:41]} 12. Nh2 {[%emt 0:04:26] B58: Classical Sicilian: 6 Be2.} Bd8 {[%emt 0:03:08]} 13. Be3 {[%emt 0:03:04]} Ne7 {[%emt 0:00:36] [#]} 14. Be2 $146 {[%emt 0:09:30] The position is equal.} ({Predecessor:} 14. Ng4 Nxg4 15. hxg4 Qc6 16. Be2 Be6 17. Bf3 Ba5 18. Nd5 Bxd5 19. exd5 Qb5 20. Bd2 Bxd2 21. Qxd2 Qxb2 {1-0 Glek,I (2408)-Virtanen,A (2348) EU-Cup 27th Rogaska Slatina 2011 (6)}) 14... Qc6 {[%emt 0:09:56]} 15. Ng4 {[%emt 0:07:30]} Bxg4 {[%emt 0:20:05]} 16. hxg4 {[%emt 0:08:00]} Ba5 {[%emt 0:00:09]} (16... Nxe4 17. Nxe4 Qxe4 18. Qxd6 $14) 17. Bf3 {[%emt 0:20:39]} Nh7 {[%emt 0:05:53]} 18. Bd2 {[%emt 0:05:22]} Ng5 {[%emt 0:05:02]} 19. Qe2 {[%emt 0:02:25]} Rac8 {[%emt 0:06:25]} 20. Red1 {[%emt 0:02:16]} Rfe8 {[%emt 0:11:08]} 21. Bxg5 {[%emt 0:06:00]} hxg5 {[%emt 0:00:06]} 22. Rd3 {[%emt 0:00:09]} Ng6 {[%emt 0:08:37] ...Nf4 would be deadly.} 23. g3 {[%emt 0:01:18] Repels Nf4} Nf8 {[%emt 0:00:38]} 24. Rad1 {[%emt 0:07:41]} Qb6 {[%emt 0:00:53]} 25. Na4 {[%emt 0:08:48]} Qb4 {[%emt 0:03:06]} 26. Ra3 {[%emt 0:02:13]} b5 {[%emt 0:02:56]} 27. Nc3 {[%emt 0:01:35] Threatens to win with Nd5.} (27. c3 $5 {[%cal Rc3b4]} Qc4 28. b4 $11 (28. Nc5 Qxc5 29. Rxa5 Qb6 $11)) 27... Qxb2 {[%emt 0:02:47]} 28. Rb3 {[%emt 0:00:21]} (28. Rxa5 $2 {too greedy.} Rxc3 29. Rxa6 Ne6 $19) 28... Qxc3 {[%emt 0:00:04]} 29. Rxc3 {[%emt 0:00:03]} (29. Rxd6 $2 {perishes.} Qa1+ 30. Qf1 Qxf1+ 31. Kxf1 Re6 32. Rxe6 Nxe6 $19) 29... Bxc3 {[%emt 0:00:06]} 30. Rxd6 {[%emt 0:00:31]} Re6 {[%emt 0:00:08]} 31. Qd1 {[%emt 0:03:25]} Bd4 {[%emt 0:01:51]} 32. Rxe6 {[%emt 0:00:07]} Nxe6 {[%emt 0:00:04]} 33. Kg2 {[%emt 0:00:41]} Rc3 {[%emt 0:02:53]} 34. Be2 {[%emt 0:00:54]} Ra3 {[%emt 0:00:42]} 35. Qb1 {[%emt 0:01:18]} g6 {[%emt 0:00:55]} 36. c3 $2 {[%emt 0:02:28]} Rxc3 $19 {[%emt 0:00:22]} 37. Bd1 {[%emt 0:00:05] [#]} Nc5 {[%emt 0:00:52]} 38. Bb3 {[%emt 0:00:47]} Nd3 {[%emt 0:01:42] Black has more active pieces.} 39. f3 {[%emt 0:00:37]} (39. Qd1 $17) 39... Kg7 {[%emt 0:00:23] Hoping for ...a5.} 40. Kh2 {[%emt 0:01:38]} (40. Bd1 $142) 40... b4 {[%emt 0:02:33]} (40... Nc5 $19 {Strongly threatening ...Rd3.} 41. Qd1 a5) 41. Qd1 $2 {[%emt 0:00:35] Wards off . White does not recover from this.} (41. Bc4 $17 {only move.} Nc5 42. Qxb4) 41... a5 {[%emt 0:02:44]} 42. Bd5 {[%emt 0:00:14]} Nb2 {[%emt 0:02:27]} 43. Qe2 {[%emt 0:00:33] [#]} Re3 $1 {[%emt 0:00:16]} 44. Qf1 {[%emt 0:01:06]} (44. Qg2) 44... Rd3 {[%emt 0:00:17]} 45. f4 {[%emt 0:00:18]} (45. Qe2 $142 Bc3 46. Kh3) 45... Rd2+ {[%emt 0:01:14]} 46. Kh3 {[%emt 0:00:24]} Nd3 {[%emt 0:00:27] And now ...Nf2+ would win.} 47. fxg5 {[%emt 0:00:40]} Nf2+ {[%emt 0:00:11]} 48. Kh4 {[%emt 0:00:34]} Rd1 {[%emt 0:00:22] Weighted Error Value: White=0.56/Black=0.09 (flawless)} 0-1

[Event "IX Iberoamericano Championship 2023"]
[Site "Panama City"]
[Date "2023.12.02"]
[Round "8.2"]
[White "Mareco, Sandro"]
[Black "Cuenca Jimenez, Jose Fernando"]
[Result "1/2-1/2"]
[ECO "D31"]
[WhiteElo "2606"]
[BlackElo "2505"]
[Annotator "TA"]
[PlyCount "57"]
[EventDate "2023.11.27"]
[EventType "swiss"]
[EventCountry "PAN"]
[SourceTitle "playchess.com"]
[Source "ChessBase"]
[SourceQuality "1"]
[TimeControl "5400+30"]

{[%evp 13,57,8,9,10,4,0,0,-33,0,-6,-7,-6,12,1,25,0,42,15,10,18,41,41,43,35,31,27,66,21,28,26,43,34,44,18,21,18,54,38,42,35,48,0,43,0,51,0]} 1. d4 {[%emt 0:04:36]} d5 {[%emt 0:00:44]} 2. c4 {[%emt 0:00:04]} e6 {[%emt 0:00:04]} 3. Nc3 {[%emt 0:00:03]} Be7 {[%emt 0:00:16]} 4. cxd5 {[%emt 0:00:05]} exd5 {[%emt 0:00:05]} 5. Bf4 {[%emt 0:00:06]} c6 {[%emt 0:00:42]} 6. e3 {[%emt 0:00:04]} Bf5 {[%emt 0:00:29]} 7. Nge2 {[%emt 0:00:05]} Nd7 {[%emt 0:00:55] [#]} 8. h4 $1 {[%emt 0:00:05] D31: Queen's Gambit Declined: Semi-Slav without ...Nf6 (+ Marshall Gambit and Noteboom) and Exchange Variation lines without ...Nf6.} Be6 {[%emt 0:00:28] [#]} (8... g6 9. Ng3) 9. Bg3 $146 {[%emt 0:02:25]} ({Predecessor:} 9. Ng3 Ngf6 10. Bd3 O-O 11. Nf5 Bb4 12. a3 Bxc3+ 13. bxc3 Bxf5 14. Bxf5 Re8 15. a4 Nf8 {½-½ Petrosyan,M (2638)-Davtyan,A (2488) Sharjah Masters 5th 2022 (1)}) 9... Ngf6 {[%emt 0:09:20]} 10. f3 {[%emt 0:02:08] The position is equal.} O-O {[%emt 0:02:23]} (10... Nh5 $5 {[%cal Rh5g3]} 11. Bf2 f5 $11) 11. Bf2 {[%emt 0:00:13]} Bd6 {[%emt 0:08:22]} 12. Nf4 {[%emt 0:10:23]} c5 {[%emt 0:06:26]} 13. dxc5 {[%emt 0:17:41]} Bxc5 {[%emt 0:02:41]} 14. Be2 {[%emt 0:03:16]} Ne5 {[%emt 0:05:03]} 15. O-O {[%emt 0:05:41]} a6 {[%emt 0:06:15]} 16. Qb3 {[%emt 0:06:29]} Qb6 {[%emt 0:11:41]} (16... b5 {is interesting.} 17. Rfd1 Ng6 18. Nfxd5 Nxd5 19. Nxd5 Nxh4 20. Rac1 Rc8) 17. Qxb6 {[%emt 0:00:50]} Bxb6 {[%emt 0:00:02]} 18. g4 {[%emt 0:03:42] Threatens to win with g5.} Ng6 {[%emt 0:01:56]} 19. Rfd1 {[%emt 0:03:28][%cal Rf4d5]} Rfd8 {[%emt 0:06:46]} 20. Ng2 {[%emt 0:13:49]} Ne7 {[%emt 0:04:56]} 21. Rac1 {[%emt 0:08:24]} Rac8 {[%emt 0:12:04]} 22. Na4 {[%emt 0:01:10]} Ba7 {[%emt 0:01:09]} 23. Rxc8 {[%emt 0:00:22]} Rxc8 {[%emt 0:02:45]} 24. Nc3 {[%emt 0:00:08]} Bb6 {[%emt 0:05:49]} 25. Nf4 {[%emt 0:01:52]} Ba5 {[%emt 0:05:20]} 26. Be1 {[%emt 0:03:53]} Bb6 {[%emt 0:00:05]} 27. Bf2 {[%emt 0:01:54]} Ba5 $1 {[%emt 0:00:04]} 28. Be1 {[%emt 0:07:23]} (28. g5 $5 {[%cal Rg5f6]} Nd7 29. e4 $14 (29. Nfxd5 Nxd5 30. Nxd5 Rc2 $14)) 28... Bb6 {[%emt 0:00:01]} 29. Bf2 {[%emt 0:00:11] Weighted Error Value: White=0.14 (very precise) /Black=0.11 (very precise)} (29. Kf2 $14) 1/2-1/2

[Event "IX Iberoamericano Championship 2023"]
[Site "Panama City"]
[Date "2023.12.02"]
[Round "8.3"]
[White "Espinosa Veloz, Ermes"]
[Black "Diaz Perez, Michel Alejandro"]
[Result "1/2-1/2"]
[ECO "C92"]
[WhiteElo "2478"]
[BlackElo "2459"]
[Annotator "TA"]
[PlyCount "117"]
[EventDate "2023.11.27"]
[EventType "swiss"]
[EventCountry "PAN"]
[SourceTitle "playchess.com"]
[Source "ChessBase"]
[SourceQuality "1"]
[TimeControl "5400+30"]

{[%evp 29,117,19,14,2,31,27,54,38,62,44,77,33,75,47,43,42,52,48,56,24,39,38,41,26,40,41,89,85,93,68,54,36,128,129,110,121,127,112,175,207,154,138,157,63,74,0,0,-117,0,-5,-2,-11,-12,-11,-18,-9,0,0,0,0,0,0,0,0,0,0,0,0,0,0,0,0,0,0,0,0,0,0,0,0,0,0,0,0,0,0,0,0,0,0]} 1. e4 {[%emt 0:03:41]} e5 {[%emt 0:00:07]} 2. Nf3 {[%emt 0:00:21]} Nc6 {[%emt 0:00:04]} 3. Bb5 {[%emt 0:00:08]} a6 {[%emt 0:00:04]} 4. Ba4 {[%emt 0:00:14]} Nf6 {[%emt 0:00:04]} 5. O-O {[%emt 0:00:11]} Be7 {[%emt 0:00:04]} 6. Re1 {[%emt 0:00:34]} b5 {[%emt 0:00:08]} 7. Bb3 {[%emt 0:00:05]} d6 {[%emt 0:00:06]} 8. c3 {[%emt 0:00:05]} O-O {[%emt 0:00:06]} 9. h3 {[%emt 0:00:13]} Bb7 {[%emt 0:00:05]} 10. d4 {[%emt 0:00:24]} Re8 {[%emt 0:00:18]} 11. Ng5 {[%emt 0:03:10]} Rf8 {[%emt 0:00:23]} 12. Nf3 {[%emt 0:00:05]} Re8 {[%emt 0:00:06]} 13. Nbd2 {[%emt 0:00:05]} Bf8 {[%emt 0:00:13]} 14. a3 $1 {[%emt 0:00:31][%mdl 4] 14.a3 is the modern continuation.} g6 {[%emt 0:00:18]} 15. Bc2 {[%emt 0:03:04]} Bg7 {[%emt 0:00:17]} 16. Nb3 {[%emt 0:00:19] C92: Closed Ruy Lopez: 9...Be6, Karpov and Flohr-Zaitsev Variations.} Rb8 {[%emt 0:13:27]} 17. Bg5 {[%emt 0:15:29]} h6 {[%emt 0:02:11] [#]} 18. Bd2 $146 {[%emt 0:00:05] White is slightly better.} ({Predecessor:} 18. Bh4 Qc8 19. d5 Ne7 20. Bxf6 Bxf6 21. Na5 Ba8 22. b4 Kg7 23. Bb3 Rd8 24. Qd3 c5 25. dxc6 Nxc6 26. Nxc6 Bxc6 {0-1 David,A (2571)-Gareyev,T (2606) Bhopal op 2017 (7)}) 18... Nd7 {[%emt 0:03:49]} 19. Be3 {[%emt 0:04:57]} Kh7 {[%emt 0:06:11]} 20. Qe2 {[%emt 0:03:56]} (20. d5 $5 {[%cal Rd5c6]} Ne7 21. a4 $16) 20... Nf6 {[%emt 0:11:42]} 21. dxe5 {[%emt 0:04:57] White is more active.} (21. Rad1 {feels hotter.} exd4 22. cxd4 Nxe4 23. d5) 21... Nxe5 {[%emt 0:00:32]} 22. Nxe5 {[%emt 0:00:10]} Rxe5 {[%emt 0:00:23]} 23. f3 {[%emt 0:01:53]} Re8 {[%emt 0:01:42]} 24. Qf2 {[%emt 0:07:37]} Nd7 {[%emt 0:03:14]} 25. Rad1 {[%emt 0:07:41]} Qe7 {[%emt 0:01:03]} 26. Nd2 {[%emt 0:02:52]} Qf8 {[%emt 0:08:37]} 27. Bd4 {[%emt 0:13:50]} Bxd4 {[%emt 0:03:45]} (27... Rbd8 $14 {should be considered.}) 28. cxd4 $16 {[%emt 0:00:15]} (28. Qxd4 Qe7 $14) 28... c5 {[%emt 0:00:52]} 29. f4 {[%emt 0:00:51][%cal Bf3f4,Bf4f5][%mdl 32]} cxd4 {[%emt 0:05:31]} 30. Qxd4 {[%emt 0:00:19]} Nc5 {[%emt 0:00:07]} (30... Rbc8 $14 31. Bb1 Qe7) 31. b4 $1 {[%emt 0:03:40]} Ne6 {[%emt 0:00:25][%csl LRd4,LRf4][%cal Bc5e6,Be6g7,Bg7f5][%mdl 32]} 32. Qf2 {[%emt 0:00:03]} Rbc8 {[%emt 0:02:15]} 33. Bb1 {[%emt 0:04:41]} Rc3 {[%emt 0:04:32]} (33... Qe7 $16) 34. f5 $18 {[%emt 0:05:06]} Ng7 {[%emt 0:00:05]} 35. Qd4 {[%emt 0:04:06]} Rxa3 {[%emt 0:04:24]} 36. Qb2 {[%emt 0:03:31]} (36. Nf1 $1 $16) 36... Rg3 $14 {[%emt 0:02:02]} 37. Kh2 {[%emt 0:06:52]} ({White should play} 37. Nf1 $16 Rg5 38. h4) 37... Nxf5 $11 {[%emt 0:06:14] And now ...Re3 would win.} 38. Rg1 {[%emt 0:00:10] [#]} (38. Nf3 $11 Rxf3 39. gxf3) 38... Rg5 $1 {[%emt 0:01:00]} 39. Nf3 $132 {[%emt 0:01:24][%mdl 2048] White is not keeping still. The position is equal.} (39. exf5 $2 {perishes.} Re2 $19) (39. Rde1 Ng3) 39... Bxe4 {[%emt 0:00:40]} 40. Nxg5+ {[%emt 0:00:07]} hxg5 {[%emt 0:00:01]} 41. Bxe4 {[%emt 0:01:24]} Rxe4 {[%emt 0:00:02]} 42. Rge1 $1 {[%emt 0:00:58]} Qe7 {[%emt 0:01:15]} 43. Rxe4 {[%emt 0:00:29]} Qxe4 {[%emt 0:00:02][%mdl 4096] Endgame KQR-KQN} 44. Qf6 {[%emt 0:00:52][%csl LRf7,LRg5]} Kg8 {[%emt 0:04:35]} 45. Rf1 {[%emt 0:00:03]} g4 {[%emt 0:00:57]} 46. hxg4 $1 {[%emt 0:00:42]} Qxg4 {[%emt 0:00:01]} 47. Kg1 {[%emt 0:00:09]} Qe4 {[%emt 0:04:47]} 48. Rf3 {[%emt 0:00:13]} (48. Kh2 {seems wilder.} d5 49. Rf3 Qe6 50. Qxe6 fxe6 51. g4) 48... Qxb4 {[%emt 0:02:23] Strongly threatening ...Qe1+.} 49. Rxf5 {[%emt 0:00:33]} (49. Rc3 {looks sharper.} Qd4+ 50. Qxd4 Nxd4 51. Rd3) 49... gxf5 {[%emt 0:00:46] KQ-KQ} 50. Qg5+ {[%emt 0:00:05]} Kf8 {[%emt 0:00:18]} 51. Qd8+ {[%emt 0:00:05]} Kg7 {[%emt 0:00:01] ( -> ...Qd4+)} 52. Qg5+ {[%emt 0:00:07]} Kh8 {[%emt 0:00:43]} 53. Qh6+ {[%emt 0:00:10]} Kg8 {[%emt 0:00:03]} 54. Qg5+ {[%emt 0:00:06]} Kh7 {[%emt 0:00:27]} 55. Qh5+ {[%emt 0:00:07]} Kg7 {[%emt 0:00:18]} 56. Qg5+ {[%emt 0:00:06]} Kf8 {[%emt 0:00:19]} 57. Qd8+ {[%emt 0:00:09]} Kg7 {[%emt 0:00:01]} 58. Qg5+ {[%emt 0:00:09]} Kf8 {[%emt 0:00:01]} 59. Qd8+ {[%emt 0:00:41] Weighted Error Value: White=0.14 (very precise) /Black=0.18 (very precise)} 1/2-1/2

[Event "IX Iberoamericano Championship 2023"]
[Site "Panama City"]
[Date "2023.12.02"]
[Round "8.4"]
[White "Cori, Jorge"]
[Black "Hernandez Montes, Jhon Sebastian"]
[Result "1-0"]
[ECO "B51"]
[WhiteElo "2626"]
[BlackElo "2280"]
[Annotator "TA"]
[PlyCount "65"]
[EventDate "2023.11.27"]
[EventType "swiss"]
[EventCountry "PAN"]
[SourceTitle "playchess.com"]
[Source "ChessBase"]
[SourceQuality "1"]
[TimeControl "5400+30"]

{[%evp 9,65,80,92,52,64,65,50,44,42,33,52,22,83,77,127,101,100,106,145,108,122,56,84,27,30,47,134,131,140,147,279,287,445,421,434,433,462,460,458,458,437,356,820,801,818,793,810,808,789,632,796,796,789,788,746,725,29986,731]} 1. e4 {[%emt 0:05:11]} c5 {[%emt 0:00:13]} 2. Nf3 {[%emt 0:00:17]} Nc6 {[%emt 0:00:08]} 3. Bb5 {[%emt 0:00:04]} e5 {[%emt 0:01:17]} 4. O-O {[%emt 0:00:49]} d6 {[%emt 0:00:53]} 5. c3 {[%emt 0:00:29]} Qb6 {[%emt 0:07:40]} 6. Na3 {[%emt 0:01:59] B51: Sicilian: Moscow Variation (3 Bb5+) without 3...Bd7.} a6 {[%emt 0:08:48]} 7. Bxc6+ {[%emt 0:19:27]} Qxc6 {[%emt 0:05:54]} 8. d4 {[%emt 0:01:15] White is slightly better.} f6 {[%emt 0:10:08]} 9. d5 {[%emt 0:00:59]} Qc7 {[%emt 0:02:21] [#]} 10. b4 $146 {[%emt 0:03:39]} ({Predecessor:} 10. Nc2 h5 11. c4 h4 12. h3 g6 13. b4 cxb4 14. Qd3 f5 15. Ng5 Nf6 16. f3 {0-1 Golubka,P (2296)-Stavroyany,S (2236) Kiev Independence Cup-A 8th 2008 (4)}) 10... Bd7 {[%emt 0:08:35]} (10... cxb4 $11 {remains equal.} 11. cxb4 f5) 11. Rb1 $16 {[%emt 0:05:17] aiming for bxc5.} Rb8 {[%emt 0:12:08]} (11... g6 $142) 12. Be3 $36 {[%emt 0:04:23][%mdl 2048] White is in control.} b5 {[%emt 0:14:17]} 13. c4 {[%emt 0:00:30] White is more active.} f5 {[%emt 0:00:11]} 14. exf5 {[%emt 0:16:21]} ({Don't take} 14. bxc5 dxc5 15. exf5 Nf6 $16) 14... Bxf5 {[%emt 0:01:41]} 15. Rc1 {[%emt 0:02:13]} (15. cxb5 $16 Bxb1 16. bxc5 dxc5 17. Qxb1) 15... Nf6 $1 $14 {[%emt 0:07:53]} 16. bxc5 {[%emt 0:12:25]} (16. Re1 $16) 16... dxc5 $11 {[%emt 0:02:02]} 17. Re1 {[%emt 0:00:03] Hoping for cxb5.} Bg4 {[%emt 0:05:53] [#] White stays focused until the end.} ({Black should try} 17... e4 $14) 18. cxb5 $1 $16 {[%emt 0:16:23]} axb5 {[%emt 0:00:02] [#]} 19. Rb1 $1 {[%emt 0:00:17]} Be7 {[%emt 0:08:02]} (19... Qd7 $16 {was worth a try.}) 20. Nxb5 $18 {[%emt 0:01:48]} Qa5 {[%emt 0:00:25]} (20... Qd7 $142) 21. Bd2 {[%emt 0:00:57]} Bxf3 {[%emt 0:00:57]} 22. gxf3 {[%emt 0:01:32]} Qxa2 {[%emt 0:00:12]} 23. d6 {[%emt 0:00:06]} ({Don't do} 23. Rxe5 O-O 24. Rxe7 Qxd5 $18) 23... Bd8 {[%emt 0:00:19]} 24. d7+ {[%emt 0:03:03]} ({Weaker is} 24. Rxe5+ Kf8 25. Rxc5 Nd7 $18) 24... Kf8 {[%emt 0:01:18]} 25. Rxe5 {[%emt 0:00:59][%cal Ob5d6] Black must now prevent Nd6!} Nxd7 $2 {[%emt 0:00:26] [#]} (25... Qf7 26. Rxc5 Qxd7) 26. Nd6 $1 {[%emt 0:00:32][%csl Gd6][%cal Re5e8]} Nxe5 {[%emt 0:00:16]} 27. Rxb8 {[%emt 0:00:02] Intending Bg5 and mate.} Ke7 {[%emt 0:01:18]} 28. Bf4 {[%emt 0:01:24]} Ke6 {[%emt 0:00:39]} 29. Nb7 {[%emt 0:01:30]} Qd5 {[%emt 0:00:30]} 30. Nxd8+ {[%emt 0:00:29]} Rxd8 {[%emt 0:00:18]} 31. Rxd8 {[%emt 0:00:01]} Nxf3+ {[%emt 0:00:09]} 32. Kf1 {[%emt 0:01:07]} Qc4+ {[%emt 0:00:22]} 33. Qe2+ {[%emt 0:00:14] Weighted Error Value: White=0.29 (precise) /Black=0.68} (33. Kg2 $142 Qd4 34. Qe2+ Kf5 35. Rf8+ Qf6 36. Rxf6+ gxf6 37. Kxf3 Kg6 38. Qe7) 1-0

[Event "IX Iberoamericano Championship 2023"]
[Site "Panama City"]
[Date "2023.12.02"]
[Round "8.5"]
[White "Hernandez Guerrero, Gilberto"]
[Black "Ulloa, Ruben Abraham"]
[Result "1/2-1/2"]
[ECO "B01"]
[WhiteElo "2527"]
[BlackElo "2150"]
[Annotator "TA"]
[PlyCount "77"]
[EventDate "2023.11.27"]
[EventType "swiss"]
[EventCountry "PAN"]
[SourceTitle "playchess.com"]
[Source "ChessBase"]
[SourceQuality "1"]
[TimeControl "5400+30"]

{[%evp 9,77,14,23,0,24,30,41,0,41,25,64,0,0,0,0,10,13,5,8,0,10,18,0,13,6,-13,-12,0,-9,-94,0,0,55,0,129,69,61,-79,-72,-70,0,0,0,-254,-246,-271,-254,-202,-154,-242,0,-241,-232,-231,-232,-224,0,0,0,-196,-92,-108,-145,-171,0,-164,0,-179,0,-112]} 1. e4 {[%emt 0:00:02]} d5 {[%emt 0:10:04]} 2. exd5 {[%emt 0:00:27]} Qxd5 {[%emt 0:00:14]} 3. Nc3 {[%emt 0:00:31]} Qa5 {[%emt 0:00:43]} 4. Bc4 {[%emt 0:02:37]} Nf6 {[%emt 0:00:35]} 5. d3 {[%emt 0:01:01]} e6 {[%emt 0:00:14]} 6. Bd2 {[%emt 0:03:37][%cal Oc3d5] B01: Scandinavian Defence.} a6 {[%emt 0:01:05]} 7. Nf3 {[%emt 0:06:27][%cal Oc3d5,Bg1f3,Bf3g5,Bg5f7,Bf7e5][%mdl 32] [#]} Nbd7 $146 {[%emt 0:05:14]} ({Predecessor:} 7... Qb6 8. O-O Qxb2 9. d4 Be7 10. d5 exd5 11. Nxd5 Nxd5 12. Bxd5 O-O 13. Re1 Bc5 {1-0 Chocenka,D (2482)-Kuenzel,U (2104) EU-ch C74/final email 2021}) 8. Qe2 {[%emt 0:03:48][%cal Oc3d5] White is slightly better.} (8. O-O $5 {[%cal Rc3d5]} Qc5 9. Bb3 $14) 8... Bb4 {[%emt 0:06:51]} 9. a3 {[%emt 0:03:51]} b5 {[%emt 0:06:53] [#]} 10. Bxe6 {[%emt 0:12:28] White is more active.} fxe6 $11 {[%emt 0:01:51]} 11. Qxe6+ {[%emt 0:04:28]} Kd8 {[%emt 0:01:02]} 12. Ng5 {[%emt 0:03:36][%cal Rg5f7]} Ne5 {[%emt 0:00:35]} 13. Qxe5 {[%emt 0:00:12]} Re8 {[%emt 0:00:13]} 14. Nf7+ {[%emt 0:00:14]} Kd7 {[%emt 0:00:06][%cal Bd8d7,Bd7e8,Be8f8][%mdl 32] [#]} 15. O-O $1 {[%emt 0:00:23]} Rxe5 {[%emt 0:00:48]} 16. Nxe5+ {[%emt 0:00:07]} Ke8 {[%emt 0:04:31] ...Bd6 is the strong threat.} 17. Rfe1 {[%emt 0:03:40] [#]} Kf8 $1 {[%emt 0:03:23]} 18. axb4 {[%emt 0:04:45]} Qxb4 {[%emt 0:03:33]} 19. Re2 {[%emt 0:17:06]} (19. Nf3 $11) 19... Qc5 {[%emt 0:04:49]} (19... Qxb2 $17 20. Rb1 Qa3) 20. Rae1 {[%emt 0:02:48]} Bf5 {[%emt 0:01:37]} (20... Kg8 $11) 21. h3 {[%emt 0:02:02]} (21. Nf3 $1 $14 Qb4 22. Nd5) 21... h5 {[%emt 0:03:00] [#]} (21... Re8 $11 {keeps the balance.}) 22. b4 $1 {[%emt 0:02:56][%mdl 512]} Qxb4 $14 {[%emt 0:05:20] [#]} 23. g4 {[%emt 0:03:58]} hxg4 $17 {[%emt 0:00:31]} 24. hxg4 {[%emt 0:00:08]} Bxg4 {[%emt 0:03:48]} (24... Nxg4 $15 25. Ne4 Qa4) 25. Ne4 $11 {[%emt 0:02:17]} Qa4 {[%emt 0:08:44]} 26. Nxf6 $2 {[%emt 0:07:49][%mdl 8192] A dynamic duo of knights.} (26. Ng6+ $11 Kf7 27. Ne5+ Kf8 28. Ng6+ Kg8 29. Ne7+ Kf8 30. Ng6+) 26... Bxe2 $19 {[%emt 0:02:08]} ({Worse is} 26... gxf6 27. Re4 fxe5 28. Rxa4 bxa4 29. Rxe5 $11) 27. Nfd7+ {[%emt 0:00:05]} Kg8 {[%emt 0:00:14]} 28. Rxe2 {[%emt 0:00:08]} Qxc2 {[%emt 0:00:29] aiming for ...Qd1+.} 29. f4 {[%emt 0:00:29][%cal Od7f6,Bf2f4,Bf4f5,Bf5f6][%mdl 32]} b4 $2 {[%emt 0:02:59]} (29... a5 $19 {Hoping for ...Qd1+.} 30. f5 Qd1+ 31. Kf2 a4) 30. Rg2 $2 {[%emt 0:00:25]} (30. Nf6+ $1 $11 {and White stays safe.} gxf6 31. Rg2+ Kh8 32. Rh2+ Kg7 33. Rg2+ Kh7 34. Rh2+ Kg7 35. Rg2+ Kh8 36. Rh2+ Kg7) 30... Qd1+ {[%emt 0:00:27]} 31. Kh2 {[%emt 0:00:06] White wants to mate with Nf6+.} a5 {[%emt 0:00:50]} 32. f5 {[%emt 0:04:23]} Qh5+ $2 {[%emt 0:07:14]} ({Black should try} 32... b3 $1 $19 {[%cal Rb3b2]} 33. Bc3 Qh5+ 34. Kg1 Qxf5) 33. Kg1 $11 {[%emt 0:00:06] Black must now prevent Nf6+.} Qd1+ $2 {[%emt 0:07:19]} ({Resist} 33... Qxf5 34. Bh6 g6 35. Rf2 $14 (35. Rxg6+ $2 {is the wrong capture.} Qxg6+ 36. Nxg6 Kh7 $19)) (33... Rf8 $11 34. f6 Qd1+ 35. Kh2 Qh5+ 36. Kg1 Qd1+ 37. Kh2 Qh5+ 38. Kg1) 34. Kh2 $19 {[%emt 0:00:05] [#]} Rd8 {[%emt 0:04:04]} (34... b3 $1 $19 {[%cal Rb3b2] is more deadly.} 35. f6 Qh5+ 36. Kg3 b2 37. f7+ Qxf7 {[%mdl 64] Promotion} 38. Nxf7 b1=Q) 35. f6 $17 {[%emt 0:04:56]} Qh5+ {[%emt 0:00:58]} 36. Kg1 {[%emt 0:00:05]} Qd1+ {[%emt 0:02:17]} 37. Kh2 {[%emt 0:00:20]} Qh5+ {[%emt 0:00:35]} 38. Kg1 $1 {[%emt 0:01:24] [#] Some like it hot} Qd1+ {[%emt 0:03:01]} ({Better is} 38... Rxd7 $1 $19 39. Nxd7 g6) 39. Kh2 {[%emt 0:00:06] A fantastic game!   Weighted Error Value: White=0.37/Black=0.52} 1/2-1/2

[Event "IX Iberoamericano Championship 2023"]
[Site "Panama City"]
[Date "2023.12.02"]
[Round "8.5"]
[White "Hernandez Guerrero, Gilberto"]
[Black "Ulloa, Ruben Abraham"]
[Result "*"]
[ECO "B01"]
[WhiteElo "2527"]
[BlackElo "2150"]
[Annotator "RC"]
[PlyCount "33"]
[EventDate "2023.11.27"]
[EventType "swiss"]
[EventCountry "PAN"]
[SourceTitle "playchess.com"]
[Source "ChessBase"]
[SourceQuality "1"]
[TimeControl "5400+30"]

1. e4 {[%emt 0:00:02]} d5 {[%emt 0:10:04]} 2. exd5 {[%emt 0:00:27]} Qxd5 {[%emt 0:00:14]} 3. Nc3 {[%emt 0:00:31]} Qa5 {[%emt 0:00:43]} 4. Bc4 {[%emt 0:02:37]} Nf6 {[%emt 0:00:35]} 5. d3 {[%emt 0:01:01]} e6 {[%emt 0:00:14]} 6. Bd2 {[%emt 0:03:37]} a6 {[%emt 0:01:05]} 7. Nf3 {[%emt 0:06:27]} Nbd7 {[%emt 0:05:14]} 8. Qe2 {[%emt 0:03:48]} Bb4 {[%emt 0:06:51]} 9. a3 {[%emt 0:03:51]} b5 {[%emt 0:06:53]} 10. Bxe6 {[%emt 0:12:28]} fxe6 {[%emt 0:01:51]} 11. Qxe6+ {[%emt 0:04:28]} Kd8 {[%emt 0:01:02]} 12. Ng5 {[%emt 0:03:36]} Ne5 {[%emt 0:00:35]} 13. Qxe5 {[%emt 0:00:12]} Re8 {[%emt 0:00:13]} 14. Nf7+ {[%emt 0:00:14]} Kd7 {[%emt 0:00:06]} 15. O-O {[%emt 0:00:23]} Re7 {[%emt 1:02:20]} 16. Qe6+ Rxe6 {[%emt 0:00:00]} 17. Ne5+ {[%emt 0:00:37]} *